bitfinex-derivatives/quotes_SOLF0:USTF0_20251025
["timestamp","ask_amount","ask_price","bid_price","bid_amount"]
[1761401979532,4.01602923,192.47,192.39,2.81]
[1761401979839,4.82954465,192.52,192.39,2.81]
[1761401980038,4.01664082,192.51,192.39,2.81]
[1761401980338,4.01664082,192.5,192.39,2.81]
[1761401980533,4.01664082,192.49,192.39,2.81]
[1761401980730,4.01664082,192.48,192.39,2.81]
[1761401980931,4.82954465,192.53,192.39,2.81]
[1761401981127,4.01673549,192.52,192.39,2.81]
[1761401981333,4.01673549,192.51,192.39,2.81]
[1761401981533,4.01673549,192.5,192.39,2.81]
[1761401981738,4.01673549,192.49,192.39,2.81]
[1761401981939,4.01673549,192.48,192.39,2.81]
[1761401982140,4.82954465,192.53,192.39,2.81]
[1761401982342,4.01729312,192.52,192.39,2.81]
[1761401982543,4.01729312,192.51,192.39,2.81]
[1761401982741,4.01729312,192.5,192.39,2.81]
[1761401982941,4.01729312,192.49,192.39,2.81]
[1761401983143,4.01729312,192.48,192.39,2.81]
[1761401983348,4.82954465,192.53,192.39,2.81]
[1761401983546,4.01752467,192.52,192.39,2.81]
[1761401983843,4.01752467,192.51,192.39,2.81]
[1761401984043,4.01752467,192.5,192.39,2.81]
[1761401984243,4.01752467,192.49,192.39,2.81]
[1761401984432,4.01752467,192.48,192.39,2.81]
[1761401984637,4.82954465,192.53,192.39,2.81]
[1761401984837,4.01776419,192.52,192.39,2.81]
[1761401985038,4.01776419,192.51,192.39,2.81]
[1761401985333,4.01776419,192.5,192.39,2.81]
[1761401985536,4.01776419,192.49,192.39,2.81]
[1761401985740,4.01776419,192.48,192.39,2.81]
[1761401985937,4.82954465,192.53,192.39,2.81]
[1761401986143,4.01775143,192.52,192.39,2.81]
[1761401986444,4.01775143,192.51,192.39,2.81]
[1761401986646,4.01775143,192.5,192.41,2.79]
[1761401986837,4.01775143,192.49,192.41,2.79]
[1761401987038,4.82954465,192.53,192.41,2.79]
[1761401987237,4.01772539,192.52,192.41,2.79]
[1761401987433,4.01772539,192.51,192.41,2.79]
[1761401987633,4.01772539,192.5,192.41,2.79]
[1761401987840,4.01772539,192.49,192.41,2.79]
[1761401988042,4.82954465,192.53,192.41,2.79]
[1761401988243,4.01764144,192.52,192.41,2.79]
[1761401988444,4.01764144,192.51,192.41,2.79]
[1761401988753,4.01764144,192.5,192.41,2.79]
[1761401989051,4.01764144,192.49,192.41,2.79]
[1761401989351,4.82954465,192.54,192.41,2.79]
[1761401989541,4.01653115,192.53,192.41,2.79]
[1761401989741,4.01653115,192.52,192.41,2.79]
[1761401989940,4.01653115,192.51,192.41,2.79]
[1761401990148,4.01653115,192.5,192.41,2.79]
[1761401990338,4.01653115,192.49,192.41,2.79]
[1761401990537,4.82954465,192.54,192.41,2.79]
[1761401990751,4.01651869,192.53,192.41,2.79]
[1761401990946,4.01651869,192.52,192.41,2.79]
[1761401991149,4.01651869,192.51,192.41,2.79]
[1761401991347,4.01651869,192.5,192.41,2.79]
[1761401991547,4.01651869,192.49,192.41,2.79]
[1761401991745,4.82954465,192.54,192.41,2.79]
[1761401991947,4.016507,192.53,192.41,2.79]
[1761401992145,4.016507,192.52,192.41,2.79]
[1761401992348,4.016507,192.51,192.41,2.79]
[1761401992549,4.016507,192.5,192.41,2.79]
[1761401992846,4.82954465,192.55,192.41,2.79]
[1761401993045,4.01662427,192.54,192.41,2.79]
[1761401993250,4.01662427,192.53,192.41,2.79]
[1761401993451,4.01662427,192.52,192.41,2.79]
[1761401993653,4.01662427,192.51,192.41,2.79]
[1761401993948,4.01662427,192.5,192.41,2.79]
[1761401994150,4.82954465,192.55,192.41,2.79]
[1761401994351,4.01630585,192.54,192.41,2.79]
[1761401994549,4.01630585,192.53,192.41,2.79]
[1761401994748,4.01630585,192.52,192.41,2.79]
[1761401994944,4.82332163,192.56,192.41,2.79]
[1761401995155,4.01630982,192.55,192.41,2.79]
[1761401995349,4.01630982,192.54,192.41,2.79]
[1761401995649,4.01630982,192.53,192.41,2.79]
[1761401995851,4.01630982,192.52,192.41,2.79]
[1761401996049,4.82332163,192.56,192.43,2.79]
[1761401996251,4.01565386,192.55,192.43,2.79]
[1761401996550,4.01565386,192.54,192.43,2.79]
[1761401996747,4.01565386,192.53,192.47,2.79]
[1761401996947,4.01565386,192.52,192.47,2.79]
[1761401997251,4.82332163,192.57,192.47,2.79]
[1761401997452,4.01425529,192.56,192.47,2.79]
[1761401997647,4.01425529,192.55,192.47,2.79]
[1761401997843,4.01425529,192.54,192.47,2.79]
[1761401998048,4.01425529,192.53,192.47,2.79]
[1761401998251,4.82332163,192.57,192.47,2.79]
[1761401998252,4.01425529,192.52,192.47,2.79]
[1761401998554,6.02564586,192.58,192.47,2.79]
[1761401998755,4.01362677,192.57,192.47,2.79]
[1761401998950,4.01362677,192.56,192.47,2.79]
[1761401999155,4.01362677,192.55,192.47,2.79]
[1761401999355,6.02564586,192.58,192.47,2.79]
[1761401999356,4.01362677,192.54,192.47,2.79]
[1761401999559,4.01362677,192.53,192.47,2.79]
[1761401999856,6.02564586,192.58,192.47,2.79]
[1761402000056,4.0130394,192.57,192.47,2.79]
[1761402000357,4.0130394,192.56,192.47,2.79]
[1761402000556,4.0130394,192.55,192.47,2.79]
[1761402000759,4.0130394,192.54,192.47,2.79]
[1761402001058,4.0130394,192.53,192.47,2.79]
[1761402001258,6.02564586,192.58,192.47,2.79]
[1761402001459,4.0106305,192.57,192.47,2.79]
[1761402001652,4.0106305,192.56,192.47,2.79]
[1761402001852,4.0106305,192.55,192.47,2.79]
[1761402002052,4.0106305,192.54,192.47,2.79]
[1761402002253,6.02564586,192.58,192.47,2.79]
[1761402002460,4.0095367,192.57,192.47,2.79]
[1761402002661,4.0095367,192.56,192.47,2.79]
[1761402002860,4.0095367,192.55,192.47,2.79]
[1761402003162,4.0095367,192.54,192.47,2.79]
[1761402003458,6.02564586,192.58,192.47,2.79]
[1761402003658,4.0091337,192.57,192.47,2.79]
[1761402003854,4.0091337,192.56,192.47,2.79]
[1761402004062,4.0091337,192.55,192.47,2.79]
[1761402004261,4.0091337,192.54,192.47,2.79]
[1761402004459,6.02564586,192.58,192.47,2.79]
[1761402004756,4.00942085,192.57,192.47,2.79]
[1761402004958,6.02564586,192.58,192.47,2.79]
[1761402004959,4.00942085,192.56,192.47,2.79]
[1761402005158,4.00942085,192.55,192.47,2.79]
[1761402005358,4.00942085,192.54,192.47,2.79]
[1761402005554,6.02564586,192.58,192.47,2.79]
[1761402005759,4.00921601,192.57,192.47,2.79]
[1761402005959,4.00921601,192.56,192.47,2.79]
[1761402006161,4.00921601,192.55,192.47,2.79]
[1761402006351,4.00921601,192.54,192.47,2.79]
[1761402006551,6.02564586,192.58,192.47,2.79]
[1761402006755,4.00909094,192.57,192.47,2.79]
[1761402006955,4.00909094,192.56,192.47,2.79]
[1761402007162,4.00909094,192.55,192.47,2.79]
[1761402007363,1.20232423,192.58,192.47,2.79]
[1761402007560,4.00915419,192.57,192.47,2.79]
[1761402007760,4.00915419,192.56,192.47,2.79]
[1761402008061,4.00915419,192.55,192.47,2.79]
[1761402008263,1.20232423,192.58,192.47,2.79]
[1761402008463,4.00900111,192.57,192.47,2.79]
[1761402008663,4.00900111,192.56,192.47,2.79]
[1761402008862,4.00900111,192.55,192.47,2.79]
[1761402009067,1.20232423,192.58,192.47,2.79]
[1761402009257,4.00900155,192.57,192.47,2.79]
[1761402009454,4.00900155,192.56,192.47,2.79]
[1761402009658,4.00900155,192.55,192.47,2.79]
[1761402009962,1.20232423,192.58,192.47,2.79]
[1761402010163,4.00988281,192.57,192.47,2.79]
[1761402010363,4.00988281,192.56,192.47,2.79]
[1761402010565,4.00988281,192.55,192.47,2.79]
[1761402010760,1.20232423,192.58,192.47,2.79]
[1761402010960,4.01017047,192.57,192.47,2.79]
[1761402011161,4.01017047,192.56,192.47,2.79]
[1761402011361,4.82332163,192.6,192.47,2.79]
[1761402011563,4.0106889,192.59,192.5,2.79]
[1761402011756,4.0106889,192.58,192.5,2.79]
[1761402011961,4.0106889,192.57,192.5,2.79]
[1761402012162,4.0106889,192.56,192.5,2.79]
[1761402012459,4.82332163,192.61,192.5,2.79]
[1761402012664,4.01044672,192.6,192.5,2.79]
[1761402012866,4.01044672,192.59,192.5,2.79]
[1761402013060,4.01044672,192.58,192.5,2.79]
[1761402013264,4.01044672,192.57,192.5,2.79]
[1761402013568,4.82332163,192.61,192.5,2.79]
[1761402013761,4.01035625,192.6,192.5,2.79]
[1761402013962,4.01035625,192.59,192.5,2.79]
[1761402014164,4.01035625,192.58,192.5,2.79]
[1761402014363,4.01035625,192.57,192.5,2.79]
[1761402014562,4.82332163,192.61,192.5,2.79]
[1761402014757,4.01029642,192.6,192.5,2.79]
[1761402014957,4.82332163,192.61,192.5,2.79]
[1761402014958,4.01029642,192.59,192.5,2.79]
[1761402015164,4.01029642,192.58,192.5,2.79]
[1761402015365,4.01029642,192.57,192.5,2.79]
[1761402015565,4.82332163,192.61,192.5,2.79]
[1761402015765,4.01033385,192.6,192.5,2.79]
[1761402015966,4.01033385,192.59,192.5,2.79]
[1761402016162,4.01033385,192.58,192.5,2.79]
[1761402016367,4.01033385,192.57,192.5,2.79]
[1761402016566,4.82332163,192.61,192.5,2.79]
[1761402016767,4.01051711,192.6,192.5,2.79]
[1761402016972,4.01051711,192.59,192.5,2.79]
[1761402017271,4.01051711,192.58,192.5,2.79]
[1761402017474,4.01051711,192.57,192.5,2.79]
[1761402017660,6.02564586,192.62,192.5,2.79]
[1761402017860,8.83387623,192.61,192.5,2.79]
[1761402018069,4.0105546,192.6,192.5,2.79]
[1761402018267,4.0105546,192.59,192.5,2.79]
[1761402018469,4.0105546,192.58,192.5,2.79]
[1761402018771,4.0105546,192.57,192.5,2.79]
[1761402018973,4.82332163,192.61,192.5,2.79]
[1761402019173,4.00188405,192.6,192.5,2.79]
[1761402019374,4.00188405,192.59,192.5,2.79]
[1761402019674,4.00188405,192.58,192.5,2.79]
[1761402019872,4.00188405,192.57,192.5,2.79]
[1761402020072,4.82332163,192.61,192.5,2.79]
[1761402020262,4.00186201,192.6,192.5,2.79]
[1761402020468,4.00186201,192.59,192.5,2.79]
[1761402020771,4.00186201,192.58,192.5,2.79]
[1761402020970,4.00186201,192.57,192.5,2.79]
[1761402021168,6.42593339,192.72,192.56,1.20232423]
[1761402021373,7.38710836,192.73,192.65,2.79]
[1761402021565,1.20232423,192.76,192.65,2.79]
[1761402021768,4.00105738,192.75,192.65,2.79]
[1761402021975,4.00105738,192.74,192.65,2.79]
[1761402022178,12.89387695,192.93,192.66,9.74154211]
[1761402022479,1.20232423,192.74,192.67,4.90649349]
[1761402022774,1.20232423,192.74,192.68,4.90649349]
[1761402022969,1.20232423,192.74,192.69,4.90649349]
[1761402023177,1.20232423,192.78,192.7,4.90649349]
[1761402023381,1.20232423,192.78,192.71,4.90649349]
[1761402023678,1.20232423,192.78,192.72,4.90649349]
[1761402023867,1.20232423,192.78,192.73,4.90649349]
[1761402024064,1.20232423,192.78,192.74,4.90649349]
[1761402024272,1.20232423,192.78,192.75,4.90649349]
[1761402024465,1.20232423,192.78,192.65,2.79]
[1761402027879,1.20232423,192.75,192.64,1.20232423]
[1761402029272,1.20232423,192.78,192.64,1.20232423]
[1761402035488,1.20232423,192.78,192.64,3.99232423]
[1761402036283,2.0,192.8,192.64,3.99232423]
[1761402036487,1.20232423,192.78,192.64,3.99232423]
[1761402038282,1.20232423,192.78,192.65,2.67]
[1761402039883,1.20232423,192.78,192.66,1.20232423]
[1761402041285,2.0,192.8,192.66,1.20232423]
[1761402041589,1.20232423,192.78,192.66,1.20232423]
[1761402042883,1.20232423,192.78,192.66,3.87232423]
[1761402047288,1.20232423,192.78,192.67,2.67]
[1761402048381,1.20232423,192.75,192.61,1.20232423]
[1761402048587,1.20232423,192.72,192.59,2.67]
[1761402048986,2.0,192.8,192.59,2.67]
[1761402049191,1.20232423,192.7,192.59,2.67]
[1761402053987,21.98041706,192.78,192.59,2.67]
[1761402053988,1.20232423,192.67,192.59,2.67]
[1761402054390,1.20232423,192.64,192.59,2.67]
[1761402056791,1.87778175,192.68,192.59,2.67]
[1761402068200,1.87778175,192.71,192.59,2.67]
[1761402068789,1.87778175,192.67,192.59,2.67]
[1761402069293,1.87778175,192.62,192.59,2.67]
[1761402071296,1.87778175,192.62,192.53,2.73]
[1761402072401,1.87778175,192.57,192.53,2.73]
[1761402100019,1.87778175,192.62,192.53,2.73]
[1761402100221,4.81259787,192.65,192.53,2.73]
[1761402100420,1.87778175,192.63,192.53,2.73]
[1761402104825,1.87778175,192.66,192.53,2.73]
[1761402113341,1.87778175,192.66,192.54,62.0]
[1761402113640,1.87778175,192.66,192.55,2.65]
[1761402118843,1.2015052,192.63,192.55,2.65]
[1761402126947,1.2015052,192.65,192.55,2.65]
[1761402127245,1.2015052,192.65,192.56,2.81]
[1761402128244,1.2015052,192.68,192.57,2.79]
[1761402137250,1.2015052,192.68,192.57,9.23673149]
[1761402137451,1.2015052,192.68,192.58,2.79]
[1761402139251,1.2015052,192.68,192.58,9.23673149]
[1761402139445,1.2015052,192.68,192.59,2.79]
[1761402143060,1.2015052,192.68,192.6,2.79]
[1761402143852,1.2015052,192.68,192.61,2.79]
[1761402146560,1.2015052,192.68,192.63,2.79]
[1761402146760,1.2015052,192.72,192.64,2.79]
[1761402148461,1.2015052,192.72,192.66,2.79]
[1761402150054,1.2015052,192.75,192.66,2.79]
[1761402150455,1.2015052,192.75,192.67,2.79]
[1761402152565,1.2015052,192.72,192.67,2.79]
[1761402154460,4.81259787,192.81,192.67,2.79]
[1761402154765,1.2015052,192.74,192.67,2.79]
[1761402162969,1.2015052,192.76,192.68,2.63]
[1761402163177,1.2015052,192.76,192.69,2.63]
[1761402164378,1.2015052,192.73,192.69,2.63]
[1761402171380,1.2015052,192.77,192.69,2.63]
[1761402171580,1.2015052,192.79,192.69,2.63]
[1761402174584,1.2015052,192.79,192.7,2.63]
[1761402175789,1.2015052,192.79,192.71,2.63]
[1761402180792,6.71397778,192.83,192.71,2.63]
[1761402182093,4.83955645,192.82,192.71,2.63]
[1761402188203,4.83955645,192.82,192.72,2.67]
[1761402191106,4.83955645,192.81,192.72,2.67]
[1761402192504,4.83955645,192.83,192.74,2.67]
[1761402194101,4.83955645,192.84,192.75,2.67]
[1761402199211,4.83955645,192.85,192.75,2.67]
[1761402207119,6.71397778,192.82,192.72,2.67]
[1761402208109,4.83955645,192.81,192.72,2.67]
[1761402209510,6.71397778,192.82,192.72,2.67]
[1761402211115,6.71397778,192.82,192.72,4.84108618]
[1761402211314,6.71397778,192.82,192.73,2.67]
[1761402213820,6.71397778,192.82,192.71,4.84108618]
[1761402214019,4.83955645,192.81,192.71,7.51108618]
[1761402214718,1.87442133,192.78,192.71,7.51108618]
[1761402214918,1.87442133,192.78,192.71,2.67]
[1761402216821,4.83955645,192.8,192.71,2.67]
[1761402217022,1.87442133,192.79,192.71,2.67]
[1761402219624,1.87442133,192.79,192.72,2.69]
[1761402223219,6.71397778,192.82,192.72,2.69]
[1761402225029,4.83955645,192.81,192.72,2.69]
[1761402226126,6.71397778,192.82,192.72,2.69]
[1761402230427,1.87442133,192.78,192.72,2.69]
[1761402240749,1.20010881,192.76,192.72,2.69]
[1761402247646,4.83955645,192.8,192.68,7.49108618]
[1761402247647,1.20010881,192.73,192.68,7.49108618]
[1761402247853,1.20010881,192.7,192.68,7.49108618]
[1761402248047,1.20010881,192.7,192.69,2.71]
[1761402272479,1.20010881,192.7,192.61,2.71]
[1761402272675,1.20010881,192.7,192.61,9.15673149]
[1761402272883,1.20010881,192.7,192.62,2.71]
[1761402300698,4.99301403,192.72,192.62,2.71]
[1761402300899,1.87650534,192.72,192.62,2.71]
[1761402301101,4.99301403,192.72,192.62,2.71]
[1761402301399,1.87650534,192.72,192.62,2.71]
[1761402301589,4.99301403,192.72,192.62,2.71]
[1761402301793,1.87650534,192.72,192.62,2.71]
[1761402302000,4.99301403,192.72,192.62,2.71]
[1761402302205,1.87650534,192.72,192.63,2.73]
[1761402302402,4.99301403,192.72,192.63,2.73]
[1761402302699,1.87650534,192.72,192.63,2.73]
[1761402302902,4.99301403,192.72,192.63,2.73]
[1761402303103,1.87650534,192.72,192.63,2.73]
[1761402303300,3.11650869,192.71,192.63,2.73]
[1761402304104,1.87650534,192.72,192.63,2.73]
[1761402304304,4.99301403,192.72,192.63,2.73]
[1761402304505,1.87650534,192.72,192.63,2.73]
[1761402304705,4.99301403,192.72,192.63,2.73]
[1761402304908,1.87650534,192.72,192.63,2.73]
[1761402305102,4.99301403,192.72,192.63,2.73]
[1761402305406,1.87650534,192.72,192.63,2.73]
[1761402305704,4.99301403,192.72,192.63,2.73]
[1761402305905,1.87650534,192.72,192.63,2.73]
[1761402306104,4.99301403,192.72,192.63,2.73]
[1761402306409,3.11650869,192.71,192.63,2.73]
[1761402311212,3.11650869,192.71,192.64,2.66]
[1761402311410,3.11650869,192.7,192.64,2.66]
[1761402311613,3.11650869,192.71,192.64,2.66]
[1761402311911,3.11650869,192.7,192.64,2.66]
[1761402312112,3.11650869,192.71,192.64,2.66]
[1761402312310,3.11650869,192.7,192.64,2.66]
[1761402312503,3.11650869,192.71,192.64,2.66]
[1761402312707,3.11650869,192.7,192.64,2.66]
[1761402312908,3.11650869,192.71,192.64,2.66]
[1761402313110,3.11650869,192.7,192.64,2.66]
[1761402313312,3.11650869,192.71,192.64,2.66]
[1761402313616,3.11650869,192.7,192.64,2.66]
[1761402313911,3.11650869,192.69,192.64,2.66]
[1761402314114,3.11650869,192.71,192.64,2.66]
[1761402314316,3.11650869,192.7,192.64,2.66]
[1761402314514,3.11650869,192.69,192.64,2.66]
[1761402314714,3.11650869,192.71,192.64,2.66]
[1761402314910,3.11650869,192.7,192.64,2.66]
[1761402315107,3.11650869,192.69,192.64,2.66]
[1761402315314,3.11650869,192.71,192.64,2.66]
[1761402315514,3.11650869,192.7,192.64,2.66]
[1761402315815,3.11650869,192.69,192.64,2.66]
[1761402316016,3.11650869,192.71,192.64,2.66]
[1761402316215,3.11650869,192.7,192.64,2.66]
[1761402316415,3.11650869,192.71,192.64,2.66]
[1761402316619,3.11650869,192.7,192.64,2.66]
[1761402316816,3.11650869,192.71,192.64,2.66]
[1761402317120,3.11650869,192.71,192.66,2.66]
[1761402317326,3.11650869,192.74,192.66,2.66]
[1761402317524,3.11650869,192.73,192.66,2.66]
[1761402317732,3.11650869,192.72,192.66,2.66]
[1761402317922,3.11650869,192.74,192.66,2.66]
[1761402318230,3.11650869,192.73,192.66,2.66]
[1761402318428,3.11650869,192.72,192.66,2.66]
[1761402318727,3.11650869,192.74,192.66,2.66]
[1761402318924,3.11650869,192.73,192.66,2.66]
[1761402319126,3.11650869,192.72,192.66,2.66]
[1761402319321,3.11650869,192.74,192.66,2.66]
[1761402319522,3.11650869,192.73,192.66,2.66]
[1761402319830,3.11650869,192.72,192.66,2.66]
[1761402320025,3.11650869,192.74,192.66,2.66]
[1761402320234,3.11650869,192.73,192.66,2.66]
[1761402320427,3.11650869,192.74,192.66,2.66]
[1761402320723,3.11650869,192.73,192.66,2.66]
[1761402320925,3.11650869,192.74,192.66,2.66]
[1761402321118,3.11650869,192.73,192.66,2.66]
[1761402321318,3.11650869,192.74,192.66,2.66]
[1761402321518,3.11650869,192.73,192.66,2.66]
[1761402321731,3.11650869,192.74,192.66,2.66]
[1761402321932,3.11650869,192.73,192.66,2.66]
[1761402322230,3.11650869,192.74,192.66,2.66]
[1761402322424,3.11650869,192.73,192.66,2.66]
[1761402322625,3.11650869,192.74,192.66,2.66]
[1761402322818,3.11650869,192.73,192.66,2.66]
[1761402323022,3.11650869,192.74,192.66,2.66]
[1761402323224,1.87650534,192.72,192.66,2.66]
[1761402323424,4.99301403,192.72,192.66,2.66]
[1761402323624,1.87650534,192.72,192.66,2.66]
[1761402324132,4.99301403,192.72,192.66,2.66]
[1761402324333,1.87650534,192.72,192.66,2.66]
[1761402324633,3.11650869,192.71,192.63,2.66]
[1761402324827,3.11650869,192.7,192.63,2.66]
[1761402325028,3.11650869,192.71,192.63,2.66]
[1761402325228,3.11650869,192.7,192.63,2.66]
[1761402325433,3.11650869,192.71,192.63,2.66]
[1761402325633,3.11650869,192.7,192.63,2.66]
[1761402325926,3.11650869,192.71,192.63,2.66]
[1761402326130,3.11650869,192.7,192.63,2.66]
[1761402326330,3.11650869,192.71,192.63,2.66]
[1761402326532,3.11650869,192.7,192.63,2.66]
[1761402326733,3.11650869,192.71,192.63,2.66]
[1761402327830,4.99301403,192.72,192.64,2.66]
[1761402328036,1.87650534,192.72,192.64,2.66]
[1761402328234,4.99301403,192.72,192.64,2.66]
[1761402328435,1.87650534,192.72,192.64,2.66]
[1761402328936,4.99301403,192.72,192.64,2.66]
[1761402329237,1.87650534,192.72,192.64,2.66]
[1761402329438,4.99301403,192.72,192.64,2.66]
[1761402329639,1.87650534,192.72,192.64,2.66]
[1761402329936,4.99301403,192.72,192.64,2.66]
[1761402330134,1.87650534,192.72,192.64,2.66]
[1761402330334,4.99301403,192.72,192.64,2.66]
[1761402330636,1.87650534,192.72,192.64,2.66]
[1761402330837,5.00035389,192.72,192.64,2.66]
[1761402331038,1.87650534,192.72,192.64,2.66]
[1761402331238,5.00035389,192.72,192.64,2.66]
[1761402331539,1.87650534,192.72,192.64,2.66]
[1761402331834,5.00035389,192.72,192.64,2.66]
[1761402332039,1.87650534,192.72,192.64,2.66]
[1761402332241,5.00035389,192.72,192.64,2.66]
[1761402332435,1.87650534,192.72,192.64,2.66]
[1761402332634,5.00035389,192.72,192.64,2.66]
[1761402332835,1.87650534,192.72,192.64,2.66]
[1761402333037,5.00035389,192.72,192.64,2.66]
[1761402333237,1.87650534,192.72,192.64,2.66]
[1761402333438,5.00035389,192.72,192.64,2.66]
[1761402333739,1.87650534,192.72,192.64,2.66]
[1761402333940,5.00035389,192.72,192.64,2.66]
[1761402334139,1.87650534,192.72,192.64,2.66]
[1761402334338,5.00035389,192.72,192.64,2.66]
[1761402334539,1.87650534,192.72,192.64,2.66]
[1761402334740,5.00035389,192.72,192.64,2.66]
[1761402334939,1.87650534,192.72,192.64,2.66]
[1761402335240,5.00035389,192.72,192.64,2.66]
[1761402335440,1.87650534,192.72,192.64,2.66]
[1761402335741,5.00035389,192.72,192.64,2.66]
[1761402336045,1.87650534,192.72,192.64,2.66]
[1761402336444,5.00021992,192.72,192.64,2.66]
[1761402336647,1.87650534,192.72,192.64,2.66]
[1761402337046,5.00021992,192.72,192.64,2.66]
[1761402337246,1.87650534,192.72,192.64,2.66]
[1761402337648,3.12371458,192.72,192.64,2.66]
[1761402337841,3.12371458,192.74,192.65,2.66]
[1761402338047,3.12371458,192.75,192.65,2.66]
[1761402338347,3.12371458,192.74,192.65,2.66]
[1761402338546,3.12371458,192.75,192.65,2.66]
[1761402338747,3.12371458,192.74,192.65,2.66]
[1761402339054,3.12371458,192.75,192.65,2.66]
[1761402339244,3.12371458,192.74,192.65,2.66]
[1761402339443,3.12371458,192.75,192.65,2.66]
[1761402339644,3.12371458,192.74,192.65,2.66]
[1761402339940,3.12371458,192.75,192.65,2.66]
[1761402340140,3.12371458,192.74,192.65,2.66]
[1761402340348,3.12371458,192.75,192.65,2.66]
[1761402340548,3.12371458,192.74,192.65,2.66]
[1761402340746,3.12371458,192.75,192.65,2.66]
[1761402340948,3.12371458,192.74,192.65,2.66]
[1761402341247,3.12371458,192.75,192.65,2.66]
[1761402341550,3.12371458,192.74,192.65,2.66]
[1761402341852,3.12371458,192.75,192.65,2.66]
[1761402342150,3.12371458,192.74,192.65,2.66]
[1761402342343,3.12371458,192.75,192.65,2.66]
[1761402342543,3.12371458,192.74,192.65,2.66]
[1761402342743,3.12371458,192.75,192.65,2.66]
[1761402342944,3.12371458,192.74,192.65,2.66]
[1761402343240,3.12371458,192.75,192.65,2.66]
[1761402343541,3.12371458,192.74,192.65,2.66]
[1761402343742,3.12371458,192.75,192.65,2.66]
[1761402343943,3.12371458,192.74,192.65,2.66]
[1761402344151,3.12371458,192.75,192.65,2.66]
[1761402344345,3.12371458,192.74,192.65,2.66]
[1761402344542,3.12371458,192.75,192.65,2.66]
[1761402344745,3.12371458,192.74,192.65,2.66]
[1761402344941,3.12371458,192.75,192.65,2.66]
[1761402345151,3.12371458,192.74,192.65,2.66]
[1761402345348,3.12371458,192.75,192.65,2.66]
[1761402345550,3.12371458,192.74,192.65,2.66]
[1761402345849,3.12371458,192.75,192.65,2.66]
[1761402346050,3.12371458,192.74,192.65,2.66]
[1761402346349,3.12371458,192.75,192.65,2.66]
[1761402346550,3.12371458,192.74,192.65,2.66]
[1761402346750,3.12371458,192.75,192.65,2.66]
[1761402346955,3.12371458,192.74,192.65,2.66]
[1761402347149,3.12371458,192.75,192.65,2.66]
[1761402347351,3.12371458,192.74,192.65,2.66]
[1761402347553,3.12371458,192.75,192.65,2.66]
[1761402347849,3.12371458,192.74,192.65,2.66]
[1761402348046,3.12371458,192.75,192.65,2.66]
[1761402348247,3.12371458,192.74,192.65,2.66]
[1761402348449,3.12371458,192.75,192.65,2.66]
[1761402348645,3.12371458,192.74,192.65,2.66]
[1761402348859,3.12371458,192.75,192.65,2.66]
[1761402349057,3.12371458,192.74,192.65,2.66]
[1761402349258,3.12371458,192.75,192.65,2.66]
[1761402349458,3.12371458,192.74,192.65,2.66]
[1761402349659,3.12371458,192.75,192.65,2.66]
[1761402350156,3.12371458,192.75,192.65,6.44673149]
[1761402350351,3.12371458,192.76,192.66,2.63]
[1761402350548,3.12371458,192.75,192.66,2.63]
[1761402350753,3.12371458,192.76,192.66,2.63]
[1761402361780,5.00021992,192.77,192.66,2.63]
[1761402361973,3.12371458,192.76,192.66,2.63]
[1761402362177,6.71468877,192.77,192.66,2.63]
[1761402362178,3.12371458,192.75,192.66,2.63]
[1761402362374,3.12371458,192.76,192.66,2.63]
[1761402362569,3.12371458,192.75,192.66,2.63]